fUST/lending_fUST_20250506
["ID","MTS","AMOUNT","RATE_DAILY","PERIOD"]
[360005506,1746477043116,-151.0,0.00032876,7]
[360005508,1746477043125,-151.0,0.00032876,7]
[360005510,1746477043135,-400.0,0.00032876,8]
[360005512,1746477043143,-826.75,0.00032876,8]
[360005514,1746477043153,-400.0,0.00032876,8]
[360005516,1746477043162,-1300.61,0.00032876,8]
[360005518,1746477043171,-544.88225736,0.00032876,8]
[360005520,1746477043180,-400.0,0.00032876,8]
[360005521,1746477043190,-1570.62,0.00032876,8]
[360005523,1746477043199,-400.0,0.00032876,8]
[360005525,1746477043208,-400.0,0.00032876,8]
[360005527,1746477043218,-400.0,0.00032876,8]
[360005529,1746477043227,-400.0,0.00032876,8]
[360005530,1746477043236,-400.0,0.00032876,8]
[360005532,1746477043246,-400.0,0.00032876,8]
[360005534,1746477043256,-400.0,0.00032876,8]
[360005535,1746477043265,-923.0,0.00032876,8]
[360005536,1746477043274,-400.0,0.00032876,8]
[360005537,1746477043284,-424.76346582,0.00032876,8]
[360005538,1746477043294,-400.0,0.00032876,8]
[360005539,1746477043303,-400.0,0.00032876,8]
[360005540,1746477043312,-400.0,0.00032876,8]
[360005541,1746477043322,-400.0,0.00032876,8]
[360005542,1746477043331,-400.0,0.00032876,8]
[360005543,1746477043340,-400.0,0.00032876,8]
[360005545,1746477043350,-400.0,0.00032876,8]
[360005547,1746477043358,-400.0,0.00032876,8]
[360005548,1746477043368,-400.0,0.00032876,8]
[360005549,1746477043377,-200.0,0.00032876,8]
[360005550,1746477043386,-400.0,0.00032876,8]
[360005551,1746477043396,-407.51,0.00032876,8]
[360005552,1746477043405,-206.96531414,0.00032876,8]
[360005553,1746477043414,-217.79190577,0.00032876,8]
[360005554,1746477043423,-151.0,0.00032876,7]
[360005555,1746477043433,-151.0,0.00032876,7]
[360005556,1746477043442,-151.0,0.00032876,7]
[360005557,1746477043452,-151.0,0.00032876,7]
[360005558,1746477043462,-518.33,0.00032876,8]
[360005559,1746477043472,-400.0,0.00032876,8]
[360005560,1746477043482,-400.0,0.00032876,8]
[360005561,1746477043491,-151.0,0.00032876,7]
[360005562,1746477043501,-151.0,0.00032876,7]
[360005563,1746477043515,-400.0,0.00032876,8]
[360005564,1746477043524,-400.0,0.00032876,8]
[360005565,1746477043533,-400.0,0.00032876,8]
[360005566,1746477043543,-400.0,0.00032876,8]
[360005567,1746477043553,-400.0,0.00032876,8]
[360005568,1746477043563,-400.0,0.00032876,8]
[360005569,1746477043573,-850.47,0.00032876,8]
[360005570,1746477043583,-400.0,0.00032876,8]
[360005571,1746477043593,-400.0,0.00032876,8]
[360005572,1746477043603,-160.13135596,0.00032876,8]
[360005573,1746477043613,-400.0,0.00032876,8]
[360005574,1746477043626,-896.58,0.00032876,8]
[360005575,1746477043644,-867.32,0.00032876,8]
[360005576,1746477043658,-400.0,0.00032876,8]
[360005578,1746477043672,-1581.59,0.00032876,8]
[360005580,1746477043686,-400.0,0.00032876,8]
[360005581,1746477043701,-779.84,0.00032876,8]
[360005582,1746477043715,-400.0,0.00032876,8]
[360005584,1746477043730,-400.0,0.00032876,8]
[360005587,1746477043746,-412.63,0.00032876,8]
[360005588,1746477043759,-401.08209744,0.00032876,8]
[360005589,1746477043773,-1026.12,0.00032876,8]
[360005590,1746477043786,-400.0,0.00032876,8]
[360005591,1746477043802,-400.0,0.00032876,8]
[360005592,1746477043815,-421.31516652,0.00032876,8]
[360005593,1746477043827,-400.0,0.00032876,8]
[360005594,1746477043840,-963.38,0.00032876,8]
[360005595,1746477043855,-400.0,0.00032876,8]
[360005596,1746477043869,-400.0,0.00032876,8]
[360005597,1746477043883,-400.0,0.00032876,8]
[360005598,1746477043899,-400.0,0.00032876,8]
[360005599,1746477043913,-400.0,0.00032876,8]
[360005600,1746477043925,-400.0,0.00032876,8]
[360005601,1746477043936,-1360.62,0.00032876,8]
[360005602,1746477043950,-400.0,0.00032876,8]
[360005604,1746477043966,-400.0,0.00032876,8]
[360005606,1746477043978,-400.97828144,0.00032876,8]
[360005608,1746477043990,-151.0,0.00032876,7]
[360005610,1746477044003,-151.0,0.00032876,7]
[360005613,1746477044015,-400.0,0.00032876,8]
[360005615,1746477044026,-3350.06,0.00032876,2]
[360005617,1746477044038,-400.0,0.00032876,8]
[360005619,1746477044050,-843.52,0.00032876,8]
[360005620,1746477044063,-400.0,0.00032876,8]
[360005621,1746477044074,-400.0,0.00032876,8]
[360005622,1746477044087,-400.0,0.00032876,8]
[360005623,1746477044099,-450.26121172,0.00032876,8]
[360005624,1746477044111,-204.33896911,0.00032876,8]
[360005625,1746477044123,-400.0,0.00032876,8]
[360005626,1746477044135,-400.0,0.00032876,8]
[360005627,1746477044148,-400.0,0.00032876,8]
[360005628,1746477044161,-400.0,0.00032876,8]
[360005629,1746477044174,-301.64541736,0.00032876,8]
[360005630,1746477044188,-400.0,0.00032876,8]
[360005633,1746477044200,-404.66497173,0.00032876,8]
[360005635,1746477044213,-400.0,0.00032876,8]
[360005637,1746477044225,-491.06,0.00032876,8]
[360005639,1746477044236,-400.0,0.00032876,8]
[360005642,1746477044247,-400.0,0.00032876,8]
[360005644,1746477044260,-400.0,0.00032876,8]
[360005646,1746477044272,-400.0,0.00032876,8]
[360005649,1746477044284,-400.0,0.00032876,8]
[360005651,1746477044297,-749.47,0.00032876,8]
[360005653,1746477044308,-400.0,0.00032876,8]
[360005655,1746477044319,-400.0,0.00032876,8]
[360005658,1746477044332,-511.96839439,0.00032876,8]
[360005660,1746477044345,-417.03,0.00032876,8]
[360005662,1746477044357,-400.0,0.00032876,8]
[360005664,1746477044369,-400.0,0.00032876,8]
[360005666,1746477044382,-1603.07,0.00032876,8]
[360005668,1746477044394,-400.0,0.00032876,8]
[360005669,1746477044407,-400.0,0.00032876,8]
[360005672,1746477044419,-400.0,0.00032876,7]
[360005673,1746477044432,-400.0,0.00032876,8]
[360005674,1746477044445,-400.0,0.00032876,8]
[360005675,1746477044458,-400.0,0.00032876,8]
[360005676,1746477044469,-151.0,0.00032876,7]
[360005677,1746477044482,-400.0,0.00032876,8]
[360005678,1746477044494,-151.0,0.00032876,7]
[360005679,1746477044508,-494.46398884,0.00032876,8]
[360005680,1746477044520,-400.0,0.00032876,8]
[360005681,1746477044532,-400.0,0.00032876,8]
[360005682,1746477044544,-400.0,0.00032876,8]
[360005683,1746477044556,-151.0,0.00032876,7]
[360005684,1746477044568,-400.0,0.00032876,2]
[360005685,1746477044580,-151.0,0.00032876,7]
[360005686,1746477044593,-400.0,0.00032876,8]
[360005687,1746477044606,-400.0,0.00032876,8]
[360005688,1746477044618,-400.0,0.00032876,8]
[360005689,1746477044633,-1004.78,0.00032876,8]
[360005690,1746477044646,-441.29,0.00032876,8]
[360005691,1746477044658,-400.0,0.00032876,8]
[360005692,1746477044670,-6760.003047,0.00032876,2]
[360005693,1746477044683,-6760.003047,0.00032876,2]
[360005694,1746477044695,-400.0,0.00032876,8]
[360005695,1746477044707,-6760.003047,0.00032876,2]
[360005696,1746477044719,-6760.003047,0.00032876,2]
[360005697,1746477044732,-477.41008178,0.00032876,8]
[360005698,1746477044743,-304.23529294,0.00032876,8]
[360005699,1746477044755,-501.46923121,0.00032876,8]
[360005700,1746477044766,-1250.72,0.00032876,8]
[360005701,1746477044778,-230.72638221,0.00032876,8]
[360005702,1746477044790,-400.0,0.00032876,8]
[360005703,1746477044802,-400.0,0.00032876,8]
[360005704,1746477044813,-323.67214338,0.00032876,8]
[360005705,1746477044825,-535.58,0.00032876,8]
[360005706,1746477044837,-400.0,0.00032876,8]
[360005707,1746477044849,-400.0,0.00032876,8]
[360005708,1746477044861,-400.0,0.00032876,8]
[360005709,1746477044872,-400.0,0.00032876,8]
[360005710,1746477044887,-400.0,0.00032876,8]
[360005711,1746477044899,-400.0,0.00032876,8]
[360005712,1746477044911,-606.68,0.00032876,8]
[360005713,1746477044924,-400.0,0.00032876,8]
[360005714,1746477044935,-400.0,0.00032876,8]
[360005715,1746477044944,-400.0,0.00032876,8]
[360005716,1746477044954,-941.65,0.00032876,8]
[360005717,1746477044965,-400.0,0.00032876,8]
[360005718,1746477044975,-400.0,0.00032876,8]
[360005719,1746477044985,-553.65,0.00032876,8]
[360005720,1746477044994,-501.31043889,0.00032876,8]
[360005721,1746477045004,-151.0,0.00032876,7]
[360005722,1746477045013,-630.89,0.00032876,8]
[360005723,1746477045023,-400.0,0.00032876,8]
[360005724,1746477045263,-151.0,0.00032876,7]
[360005725,1746477045282,-400.0,0.00032876,8]
[360005726,1746477045292,-992.75,0.00032876,8]
[360005727,1746477045302,-425.49264212,0.00032876,8]
[360005728,1746477045311,-400.0,0.00032876,8]
[360005729,1746477045320,-400.0,0.00032876,8]
[360005730,1746477045330,-400.0,0.00032876,8]
[360005731,1746477045339,-400.0,0.00032876,8]
[360005732,1746477045350,-1225.91,0.00032876,8]
[360005733,1746477045360,-307.102977,0.00032876,7]
[360005734,1746477045370,-307.102977,0.00032876,7]
[360005735,1746477045379,-400.0,0.00032876,8]
[360005736,1746477045389,-400.0,0.00032876,8]
[360005737,1746477045400,-307.102977,0.00032876,7]
[360005738,1746477045409,-400.0,0.00032876,8]
[360005739,1746477045424,-307.102977,0.00032876,7]
[360005740,1746477045433,-400.0,0.00032876,8]
[360005741,1746477045442,-400.0,0.00032876,8]
[360005742,1746477045452,-500.0,0.00032876,8]
[360005744,1746477045461,-400.0,0.00032876,8]
[360005746,1746477045471,-500.0,0.00032876,8]
[360005748,1746477045480,-400.0,0.00032876,8]
[360005750,1746477045490,-500.0,0.00032876,8]
[360005752,1746477045499,-500.0,0.00032876,8]
[360005754,1746477045512,-500.0,0.00032876,8]
[360005756,1746477045521,-403.18437504,0.00032876,8]
[360005757,1746477045530,-500.0,0.00032876,8]
[360005759,1746477045540,-407.11,0.00032876,8]
[360005761,1746477045550,-400.0,0.00032876,8]
[360005763,1746477045560,-400.0,0.00032876,8]
[360005765,1746477045569,-400.0,0.00032876,8]
[360005767,1746477045584,-400.0,0.00032876,8]
[360005769,1746477045594,-400.0,0.00032876,8]
[360005771,1746477045604,-400.0,0.00032876,8]
[360005773,1746477045614,-400.0,0.00032876,8]
[360005775,1746477045624,-400.0,0.00032876,8]
[360005777,1746477045634,-275.10983,0.00032876,2]
[360005779,1746477045644,-275.10983,0.00032876,2]
[360005781,1746477045653,-400.0,0.00032876,8]
[360005783,1746477045666,-400.0,0.00032876,8]
[360005786,1746477045677,-275.10983,0.00032876,2]
[360005788,1746477045686,-275.10983,0.00032876,2]
[360005789,1746477045696,-3599.95,0.00032876,8]
[360005790,1746477045705,-400.0,0.00032876,8]
[360005792,1746477045715,-2897.28,0.00032876,8]
[360005794,1746477045725,-400.0,0.00032876,8]
[360005795,1746477045735,-400.0,0.00032876,8]
[360005797,1746477045744,-481.35,0.00032876,8]
[360005798,1746477045754,-400.0,0.00032876,8]
[360005799,1746477045763,-2205.69,0.00032876,8]
[360005800,1746477045773,-3492.57,0.00032876,8]
[360005801,1746477045783,-2970.08,0.00032876,8]
[360005802,1746477045793,-819.48,0.00032876,8]
[360005803,1746477045802,-1931.64,0.00032876,8]
[360005804,1746477045812,-400.0,0.00032876,8]
[360005805,1746477045822,-400.0,0.00032876,8]
[360005806,1746477045833,-400.0,0.00032876,8]
[360005807,1746477045842,-400.0,0.00032876,8]
[360005808,1746477045852,-400.0,0.00032876,8]
[360005809,1746477045862,-400.0,0.00032876,8]
[360005810,1746477045871,-438.54,0.00032876,8]
[360005811,1746477045881,-400.0,0.00032876,8]
[360005812,1746477045890,-1111.28,0.00032876,8]
[360005813,1746477045900,-884.25,0.00032876,8]
[360005814,1746477045909,-400.0,0.00032876,8]
[360005815,1746477045921,-400.0,0.00032876,8]
[360005816,1746477045930,-400.0,0.00032876,8]
[360005817,1746477045940,-400.0,0.00032876,8]
[360005818,1746477045950,-400.0,0.00032876,8]
[360005819,1746477045959,-400.0,0.00032876,8]
[360005820,1746477045969,-400.0,0.00032876,8]
[360005821,1746477045978,-400.0,0.00032876,8]
[360005822,1746477045987,-400.0,0.00032876,8]
[360005823,1746477045996,-400.0,0.00032876,8]
[360005824,1746477046006,-3000.85,0.00032876,8]
[360005825,1746477046015,-824.62,0.00032876,8]
[360005826,1746477046025,-400.0,0.00032876,8]
[360005827,1746477046034,-241.99508724,0.00032876,8]
[360005828,1746477046043,-400.0,0.00032876,8]
[360005829,1746477046052,-455.62,0.00032876,8]
[360005830,1746477046062,-500.91484984,0.00032876,8]
[360005831,1746477046071,-400.0,0.00032876,8]
[360005832,1746477046082,-500.0,0.00032876,8]
[360005833,1746477046091,-400.0,0.00032876,8]
[360005834,1746477046101,-476.47,0.00032876,8]
[360005835,1746477046110,-1260.63,0.00032876,8]
[360005836,1746477046119,-9929.17,0.00032876,8]
[360005837,1746477046128,-2404.52,0.00032876,8]
[360005838,1746477046138,-400.0,0.00032876,8]
[360005839,1746477046147,-583.91,0.00032876,8]
[360005840,1746477046156,-400.0,0.00032876,8]
[360005841,1746477046167,-400.0,0.00032876,8]
[360005842,1746477046177,-400.0,0.00032876,8]
[360005843,1746477046186,-1366.67,0.00032876,8]
[360005844,1746477046196,-804.65,0.00032876,8]
[360005845,1746477046206,-400.0,0.00032876,8]
[360005846,1746477046216,-2610.48,0.00032876,8]
[360005847,1746477046226,-400.0,0.00032876,8]
[360005848,1746477046237,-1582.3,0.00032876,8]
[360005849,1746477046246,-400.0,0.00032876,8]
[360005850,1746477046257,-400.14815938,0.00032876,8]
[360005851,1746477046267,-400.0,0.00032876,8]
[360005852,1746477046276,-400.0,0.00032876,8]
[360005853,1746477046286,-400.0,0.00032876,8]
[360005854,1746477046295,-1810.86,0.00032876,8]
[360005855,1746477046306,-400.0,0.00032876,8]
[360005856,1746477046315,-400.0,0.00032876,8]
[360005857,1746477046324,-8390.32,0.00032876,8]
[360005858,1746477046333,-400.0,0.00032876,8]
[360005859,1746477046343,-400.0,0.00032876,8]
[360005860,1746477046353,-400.0,0.00032876,8]
[360005861,1746477046363,-644.41,0.00032876,8]
[360005862,1746477046372,-400.0,0.00032876,8]
[360005863,1746477046382,-400.0,0.00032876,8]
[360005864,1746477046391,-400.0,0.00032876,8]
[360005865,1746477046401,-400.0,0.00032876,8]
[360005866,1746477046412,-2005.57,0.00032876,8]
[360005867,1746477046422,-400.0,0.00032876,8]
[360005868,1746477046432,-400.0,0.00032876,8]
[360005869,1746477046442,-433.92,0.00032876,8]
[360005870,1746477046452,-400.0,0.00032876,8]
[360005871,1746477046462,-400.0,0.00032876,8]
[360005872,1746477046472,-400.0,0.00032876,8]
[360005873,1746477046482,-400.0,0.00032876,8]
[360005874,1746477046492,-487.64,0.00032876,8]
[360005875,1746477046501,-400.0,0.00032876,8]
[360005876,1746477046515,-400.0,0.00032876,8]
[360005877,1746477046524,-918.96,0.00032876,8]
[360005878,1746477046534,-400.0,0.00032876,8]
[360005879,1746477046544,-400.0,0.00032876,8]
[360005880,1746477046554,-1000.0,0.00032876,8]
[360005881,1746477046563,-400.0,0.00032876,8]
[360005882,1746477046572,-3259.27,0.00032876,8]
[360005883,1746477046582,-303.88319864,0.00032876,8]
[360005884,1746477046591,-400.0,0.00032876,8]
[360005885,1746477046602,-400.0,0.00032876,8]
[360005886,1746477046611,-2006.72,0.00032876,8]
[360005887,1746477046621,-497.93,0.00032876,8]
[360005888,1746477046631,-1436.28,0.00032876,8]
[360005889,1746477046641,-400.0,0.00032876,8]
[360005890,1746477046651,-469.87,0.00032876,8]
[360005891,1746477046660,-400.0,0.00032876,8]
[360005892,1746477046670,-400.0,0.00032876,8]
[360005893,1746477046680,-1090.39,0.00032876,8]
[360005894,1746477046689,-400.0,0.00032876,8]
[360005895,1746477046698,-4062.47,0.00032876,8]
[360005896,1746477046708,-400.0,0.00032876,8]
[360005897,1746477046717,-362.29280791,0.00032876,8]
[360005898,1746477046726,-1114.33,0.00032876,8]
[360005899,1746477046736,-400.0,0.00032876,8]
[360005900,1746477046745,-2077.09,0.00032876,8]
[360005901,1746477046755,-400.0,0.00032876,8]
[360005902,1746477046764,-400.0,0.00032876,8]
[360005903,1746477046774,-1456.15,0.00032876,8]
[360005904,1746477046783,-546.39,0.00032876,8]
[360005905,1746477046792,-400.0,0.00032876,8]
[360005906,1746477046801,-4476.54,0.00032876,8]
[360005907,1746477046811,-638.56,0.00032876,8]
[360005908,1746477046820,-500.0,0.00032876,15]
[360005909,1746477046830,-400.0,0.00032876,8]
[360005910,1746477046839,-500.36647621,0.00032876,8]
[360005911,1746477046848,-400.0,0.00032876,8]
[360005912,1746477046858,-683.64,0.00032876,8]
[360005913,1746477046867,-402.90109119,0.00032876,8]
[360005914,1746477046877,-400.0,0.00032876,8]
[360005915,1746477046886,-400.0,0.00032876,8]
[360005916,1746477046896,-619.75,0.00032876,8]
[360005917,1746477046905,-325.563528,0.00032876,7]
[360005918,1746477046916,-325.563528,0.00032876,7]
[360005919,1746477046926,-325.563528,0.00032876,7]
[360005920,1746477046935,-400.0,0.00032876,8]
[360005921,1746477046944,-400.0,0.00032876,8]
[360005922,1746477046954,-400.0,0.00032876,8]
[360005923,1746477046963,-325.563528,0.00032876,7]
[360005924,1746477046972,-526.54,0.00032876,8]
[360005925,1746477046982,-325.563528,0.00032876,7]
[360005926,1746477046992,-401.84121099,0.00032876,8]
[360005927,1746477047001,-325.563528,0.00032876,7]
[360005928,1746477047011,-758.85,0.00032876,8]
[360005929,1746477047020,-24521.13,0.00032876,8]
[360005930,1746477047029,-400.0,0.00032876,8]
[360005931,1746477047038,-400.0,0.00032876,8]
[360005932,1746477047047,-400.0,0.00032876,8]
[360005933,1746477047056,-400.0,0.00032876,8]
[360005934,1746477047065,-400.0,0.00032876,8]
[360005935,1746477047075,-152.9121276,0.00032876,8]
[360005936,1746477047084,-400.0,0.00032876,8]
[360005937,1746477047092,-1075.31,0.00032876,8]
[360005938,1746477047102,-400.0,0.00032876,8]
[360005939,1746477047111,-400.0,0.00032876,8]
[360005940,1746477047121,-989.84,0.00032876,8]
[360005941,1746477047130,-400.0,0.00032876,8]
[360005942,1746477047139,-2581.34,0.00032876,8]
[360005943,1746477047148,-210.63447585,0.00032876,8]
[360005944,1746477047158,-400.0,0.00032876,8]
[360005945,1746477047169,-400.0,0.00032876,8]
[360005946,1746477047179,-498.57,0.00032876,8]
[360005947,1746477047189,-562.95,0.00032876,8]
[360005948,1746477047199,-400.0,0.00032876,8]
[360005949,1746477047209,-400.0,0.00032876,8]
[360005950,1746477047218,-563.56,0.00032876,8]
[360005951,1746477047227,-151.0,0.00032876,7]
[360005952,1746477047237,-151.0,0.00032876,7]
[360005953,1746477047246,-151.0,0.00032876,7]
[360005954,1746477047255,-2005.02,0.00032876,8]
[360005955,1746477047264,-400.0,0.00032876,8]
[360005956,1746477047274,-400.0,0.00032876,8]
[360005957,1746477047283,-400.0,0.00032876,8]
[360005958,1746477047292,-1801.43,0.00032876,8]
[360005959,1746477047302,-9097.21,0.00032876,8]
[360005960,1746477047311,-400.0,0.00032876,8]
[360005961,1746477047320,-3028.71,0.00032876,8]
[360005962,1746477047330,-400.0,0.00032876,8]
[360005963,1746477047340,-400.0,0.00032876,8]
[360005964,1746477047349,-400.0,0.00032876,8]
[360005965,1746477047358,-217.62921253,0.00032876,8]
[360005966,1746477047368,-400.0,0.00032876,8]
[360005967,1746477047378,-400.0,0.00032876,8]
[360005968,1746477047388,-1797.43,0.00032876,8]
[360005969,1746477047397,-531.52,0.00032876,8]
[360005970,1746477047407,-400.0,0.00032876,8]
[360005971,1746477047419,-400.0,0.00032876,8]
[360005972,1746477047429,-522.10481605,0.00032876,8]
[360005973,1746477047439,-6864.69,0.00032876,8]
[360005974,1746477047448,-400.0,0.00032876,8]
[360005975,1746477047457,-400.0,0.00032876,8]
[360005976,1746477047467,-4586.98,0.00032876,8]
[360005977,1746477047476,-400.0,0.00032876,8]
[360005978,1746477047486,-400.0,0.00032876,8]
[360005979,1746477047496,-400.0,0.00032876,8]
[360005980,1746477047506,-1501.28,0.00032876,8]
[360005981,1746477047518,-400.0,0.00032876,8]
[360005982,1746477047527,-400.0,0.00032876,8]
[360005983,1746477047537,-400.0,0.00032876,8]
[360005984,1746477047548,-2940.89,0.00032876,8]
[360005985,1746477047560,-400.0,0.00032876,2]
[360005986,1746477047570,-400.0,0.00032876,8]
[360005987,1746477047581,-400.0,0.00032876,8]
[360005988,1746477047592,-3563.17,0.00032876,8]
[360005989,1746477047602,-400.0,0.00032876,8]
[360005990,1746477047611,-523.85,0.00032876,8]
[360005991,1746477047622,-400.0,0.00032876,8]
[360005992,1746477047632,-400.0,0.00032876,8]
[360005993,1746477047641,-1429.01,0.00032876,8]
[360005994,1746477047651,-400.0,0.00032876,2]
[360005995,1746477047660,-400.0,0.00032876,8]
[360005996,1746477047672,-726.2,0.00032876,8]
[360005997,1746477047682,-233.97391957,0.00032876,8]
[360005998,1746477047691,-400.0,0.00032876,8]
[360005999,1746477047700,-400.0,0.00032876,8]
[360006000,1746477047710,-494.32,0.00032876,8]
[360006001,1746477047719,-400.0,0.00032876,8]
[360006002,1746477047729,-400.0,0.00032876,8]
[360006003,1746477047738,-400.0,0.00032876,8]
[360006004,1746477047748,-400.0,0.00032876,2]
[360006005,1746477047757,-400.0,0.00032876,8]
[360006006,1746477047766,-2667.55,0.00032876,8]
[360006007,1746477047776,-400.0,0.00032876,8]
[360006008,1746477047785,-669.864565,0.00032877,14]
[360006009,1746477047794,-669.864565,0.00032877,14]
[360006010,1746477047803,-151.0,0.00032877,8]
[360006011,1746477047812,-151.0,0.00032877,8]
[360006012,1746477047822,-188.9933175,0.00032877,2]
[360006013,1746477047833,-151.0,0.00032877,2]
[360006014,1746477047842,-160.42348852,0.00032877,2]
[360006015,1746477047852,-151.0,0.00032877,2]
[360006016,1746477047861,-151.0,0.00032877,2]
[360006017,1746477047871,-201.0391838,0.00032877,2]
[360006018,1746477047880,-151.0,0.00032877,2]
[360006019,1746477047889,-500.0,0.00032877,2]
[360006020,1746477047898,-500.0,0.00032877,2]
[360006021,1746477047907,-151.0,0.00032877,2]
[360006022,1746477047918,-151.27407465,0.00032877,2]
[360006023,1746477047927,-500.0,0.00032877,2]
[360006024,1746477047936,-151.0,0.00032877,2]
[360006025,1746477047946,-248.48814441,0.00032877,2]
[360006026,1746477047955,-500.0,0.00032877,2]
[360006027,1746477047965,-151.5795606,0.00032877,2]
[360006028,1746477047974,-1299.0,0.00032877,2]
[360006029,1746477047984,-151.0,0.00032877,2]
[360006030,1746477047993,-151.0,0.00032877,2]
[360006031,1746477048002,-500.0,0.00032877,2]
[360006032,1746477048012,-151.0,0.00032877,2]
[360006033,1746477048021,-160.77902792,0.00032877,2]
[360006034,1746477048030,-151.0,0.00032877,2]
[360006035,1746477048039,-500.0,0.00032877,2]
[360006036,1746477048049,-151.0,0.00032877,2]
[360006037,1746477048058,-151.0,0.00032877,2]
[360006038,1746477048068,-500.0,0.00032877,2]
[360006039,1746477048077,-151.32069639,0.00032877,2]
[360006040,1746477048086,-500.0,0.00032877,2]
[360006041,1746477048096,-151.0,0.00032877,2]
[360006042,1746477048105,-151.0,0.00032877,2]
[360006043,1746477048114,-500.0,0.00032877,2]
[360006044,1746477048124,-151.0,0.00032877,2]
[360006045,1746477048134,-500.0,0.00032877,7]
[360006046,1746477048143,-584.46044882,0.00032877,7]
[360006047,1746477048153,-151.0,0.00032877,10]
[360006048,1746477048163,-151.0,0.00032877,10]
[360006049,1746477048172,-500.0,0.00032877,10]
[360006050,1746477048182,-151.07251495,0.00032877,10]
[360006051,1746477048192,-200.08925429,0.00032877,10]
[360006052,1746477048201,-157.0,0.00032877,10]
[360006053,1746477048211,-500.0,0.00032877,10]
[360006054,1746477048220,-500.0,0.00032877,10]
[360006055,1746477048230,-151.0,0.00032879,14]
[360006056,1746477048240,-151.0,0.00032879,14]
[360006057,1746477048250,-151.0,0.00032879,14]
[360006058,1746477048259,-557.119261,0.00032879,14]
[360006059,1746477048269,-557.119261,0.00032879,14]
[360006060,1746477048279,-232.029026,0.00032879,14]
[360006061,1746477048289,-449.113188,0.00032879,14]
[360006062,1746477048299,-449.113188,0.00032879,14]
[360006063,1746477048308,-160.0,0.0003288,7]
[360006064,1746477048318,-164.740979,0.0003288,14]
[360006065,1746477048327,-151.0,0.0003288,14]
[360006066,1746477048337,-346.754623,0.0003288,14]
[360006067,1746477048488,-346.754623,0.0003288,14]
[360006068,1746477048498,-160.0,0.0003288,7]
[360006069,1746477048511,-151.0,0.00032895,14]
[360006070,1746477048521,-151.0,0.00032895,14]
[360006071,1746477048531,-259.84,0.00032899,2]
[360006072,1746477048540,-160.0,0.000329,3]
[360006073,1746477048550,-4088.24,0.000329,7]
[360006074,1746477048559,-8795.0,0.000329,30]
[360006075,1746477048569,-421.83547488,0.000329,3]
[360006076,1746477048579,-421.83547488,0.000329,7]
[360006077,1746477048589,-182.23035355,0.000329,3]
[360006078,1746477048599,-182.23035355,0.000329,7]
[360006079,1746477048608,-841.77443764,0.000329,3]
[360006080,1746477048618,-841.77443764,0.000329,7]
[360006081,1746477048627,-160.0,0.000329,3]
[360006082,1746477048637,-160.0,0.000329,7]
[360006083,1746477048646,-12607.13495863,0.000329,3]